Cogmind - Beta 13 @@@ ROGUE MODE // 2024.04.03 @ 19:29:35 Player: SnowyImp Result: Destroyed by H-55 Commando with Assault Rifle Performance ------------- Evolutions (2) 1000 Regions Visited (3) 600 Robots Destroyed (18) 90 Value Destroyed (525) 525 Prototype IDs (0) 0 Alien Tech Used (0) 0 Bonus (35) 35 TOTAL SCORE: 2250 Bonus ------- High Alert Combat Kills 35 Cogmind --------- Core Integrity 0/550 Matter 243/300 Energy 275/275 System Corruption 0% Temperature Cool (28) Movement Core (250) Ox4 Location -8/Materials Parts ------- > --- POWER (1) -------- Deuterium Engine > --- PROPULSION (4) --- (None) > --- UTILITY (4) ------ Visual Processing Unit > --- WEAPON (2) ------- Beam Rifle Autogun > --- INVENTORY (5) ---- Hacking Suite Hacking Suite Hacking Suite Peak State ------------ > --- POWER ------------ Ion Engine > --- PROPULSION ------- Flight Unit Flight Unit Flight Unit Flight Unit > --- UTILITY ---------- Visual Processing Unit Sensor Array Reaction Control System Hacking Suite > --- WEAPON ----------- Shotgun Shotgun > --- INVENTORY -------- Hacking Suite Hacking Suite Hacking Suite [Rating: 18] Favorites ----------- Power Light Ion Engine Engine Light Ion Engine Propulsion Flight Unit Leg Aluminum Leg Flight Unit Flight Unit Utility Visual Processing Unit Device Sensor Array Storage Small Storage Unit Processor Visual Processing Unit Hackware Hacking Suite Weapon Shotgun Energy Gun Small Laser Ballistic Gun Shotgun Build | -11 -10 -9 -8 ------- Run | Yrd Mat Mat Mat Slots Evolved 4 | . . 2 2 Power . | . . . . Propulsion 2 | . . 2 . Utility 2 | . . . 2 Weapon . | . . . . Parts Attached 29 | 6 4 8 11 Power 5 | 1 . 2 2 Engine 5 | 1 . 2 2 Core . | . . . . Reactor . | . . . . Propulsion 9 | 2 2 4 1 Treads . | . . . . Leg 3 | 2 . . 1 Wheel . | . . . . Hover . | . . . . Flight 6 | . 2 4 . Utility 5 | 1 2 . 2 Device 2 | . 1 . 1 Storage 1 | 1 . . . Processor 1 | . 1 . . Hackware 1 | . . . 1 Protection . | . . . . Artifact . | . . . . Weapon 10 | 2 . 2 6 Energy Gun 5 | 1 . . 4 Energy Cannon . | . . . . Ballistic Gun 5 | 1 . 2 2 Ballistic Cannon . | . . . . Launcher . | . . . . Special Weapon . | . . . . Impact Weapon . | . . . . Slashing Weapon . | . . . . Piercing Weapon . | . . . . Special Melee Weapon . | . . . . Unidentified Prototypes . | . . . . Parts Lost 12 | . . 1 11 Power 2 | . . . 2 Propulsion 6 | . . 1 5 Utility 2 | . . . 2 Weapon 2 | . . . 2 Highest Loss Streak 7 | . . 1 7 To Critical Strikes . | . . . . Average Slot Usage (%) 81 | . 90 86 75 Engine 9 | . 14 11 7 Leg 6 | . 22 . 1 Flight 20 | . 5 35 23 Device 10 | . 5 11 12 Storage 2 | . 9 . . Processor 8 | . 4 11 9 Hackware 5 | . . . 8 Energy Gun 5 | . 14 . 3 Ballistic Gun 12 | . 14 18 10 Naked Turns . | . . . . Heaviest Build 15 | 11 12 12 15 Greatest Support 20 | 20 20 16 16 Greatest Overweight (x) 4 | . . . 4 Average Overweight (x) . | . . . . Largest Inventory Capacity 8 | 8 8 5 5 Average Capacity 5 | 6 7 5 5 Most Carried 5 | 4 5 5 4 Average Carried 3 | 2 4 4 3 Final Capacity 8 | 8 5 5 5 Final Carried 5 | 4 5 5 3 Class Distribution -------------------- 46% | Mutant 37% | Scavenger-Sprinter 15% | Scavenger-Mutant Dominant Class ---------------- Mutant | -10/Materials Scavenger-Sprinter | -9/Materials Scavenger-Sprinter | -8/Materials Resources | -11 -10 -9 -8 ----------- Run | Yrd Mat Mat Mat Matter Collected 607 | 166 107 134 200 Remotely . | . . . . Salvage Created 583 | . 129 134 320 Parts 39 | . 9 13 17 Haulers Intercepted . | . . . . Recyclers Shooed . | . . . . Parts Field Recycled . | . . . . Retrieved Matter . | . . . . Parts Self-Destructed . | . . . . Prevented . | . . . . Kills | -11 -10 -9 -8 ------- Run | Yrd Mat Mat Mat Combat Hostiles Destroyed 16 | . 4 5 7 Guns 16 | . 4 5 7 Classes Destroyed 5 | . 3 1 1 Watcher 2 | . 1 1 . Swarmer 7 | . 3 4 . Grunt 4 | . 1 . 3 Sentry 4 | . . 1 3 Hunter 1 | . . . 1 Best Kill Streak 6 | . 4 6 3 Combat Bots Only 5 | . 3 5 3 Max Kills in Single Turn 1 | . 1 1 1 Gunslinging . | . . . . Exploded . | . . . . Melee . | . . . . Uniques/NPCs Destroyed . | . . . . Combat | -11 -10 -9 -8 -------- Run | Yrd Mat Mat Mat Hostile Shots Fired 177 | . 14 27 136 Missed 59 | . 7 11 41 Damage Taken 1647 | . 105 176 1366 Core 607 | . 6 45 556 Absorbed by Shields . | . . . . Core Remaining (%) 95 | 100 97 88 . Volleys Fired 67 | . 11 14 42 Largest 2 | . 2 2 2 Hottest 90 | . 60 46 90 Shots Fired 107 | . 22 17 68 Gun 107 | . 22 17 68 Cannon . | . . . . Launcher . | . . . . Special . | . . . . Kinetic 72 | . 11 17 44 Thermal 18 | . 11 . 7 Explosive . | . . . . Electromagnetic 17 | . . . 17 Robot Hit Streak 10 | . 6 3 10 Robot Miss Streak 8 | . 3 5 8 Penetration Max . | . . . . Secondary Targets 2 | . . . 2 Max Gunslinging Chain 1 | . . . 1 Shots Hit Robots 76 | . 11 10 55 Core Hits 41 | . 7 8 26 Critical Kills . | . . . . Critical Parts Destroyed . | . . . . Critical Strikes . | . . . . Melee Attacks . | . . . . Impact . | . . . . Slashing . | . . . . Piercing . | . . . . Sneak Attacks . | . . . . Combat Hostiles . | . . . . Follow-up Attacks . | . . . . Damage Inflicted 1067 | . 128 162 777 Guns 1056 | . 128 162 766 Cannons . | . . . . Explosions . | . . . . Melee . | . . . . Ramming 11 | . . . 11 Kinetic 687 | . 73 162 452 Thermal 144 | . 55 . 89 Explosive . | . . . . Electromagnetic 225 | . . . 225 Impact . | . . . . Slashing . | . . . . Piercing . | . . . . Highest Corruption . | . . . . Average Corruption . | . . . . Corruption Purged . | . . . . Corruption Blocked . | . . . . Overload Shots . | . . . . Overflow Damage . | . . . . Projectiles . | . . . . Explosions . | . . . . Melee . | . . . . Knockbacks . | . . . . Impact . | . . . . Kinetic . | . . . . Secondary . | . . . . Self-Inflicted Damage . | . . . . Shots . | . . . . Rammed . | . . . . Targets Rammed 11 | . . . 11 Kicked 11 | . . . 11 Crushed . | . . . . Highest Temperature 172 | . 63 4 172 Average Temperature 63 | . 34 2 72 Received Heat Transfer 477 | . 27 27 423 Siege Activations . | . . . . Robots Corrupted . | . . . . Combat Hostiles . | . . . . Parts Fried 1 | . . . 1 Impact Corruptions . | . . . . Robots Melted . | . . . . Combat Hostiles . | . . . . Parts Melted . | . . . . Heat Transferred 347 | . 125 . 222 Parts Sabotaged . | . . . . Parts Stolen . | . . . . Parts Stripped . | . . . . Power Chain Reactions . | . . . . Alert | -11 -10 -9 -8 ------- Run | Yrd Mat Mat Mat Peak Influence 468 | . 206 233 468 Initial 98 | . . 86 98 Average 182 | . 61 189 265 Maximum Alert Level 2 | . 1 1 2 Low Security (%) 56 | 100 98 38 34 Level 1 35 | . 1 61 50 Level 2 7 | . . . 15 Level 3 . | . . . . Level 4 . | . . . . Level 5 . | . . . . High Security . | . . . . Max Security . | . . . . Squads Dispatched 2 | . 1 . 1 Investigation . | . . . . Extermination . | . . . . Reinforcement 2 | . 1 . 1 Assault . | . . . . Garrison . | . . . . Intercept . | . . . . Searches Triggered . | . . . . Construction Impeded . | . . . . Haulers Reinforced . | . . . . Active Scanning Responses . | . . . . Cargo Convoy Interrupts . | . . . . Stealth | -11 -10 -9 -8 --------- Run | Yrd Mat Mat Mat Distress Signals 3 | . 1 1 1 Communications Jammed . | . . . . Distress Signals . | . . . . Times Spotted 36 | . 8 7 21 Peak Tracking Total 9 | . 4 6 9 Tactical Retreats 5 | . 2 . 3 Traps | -11 -10 -9 -8 ------- Run | Yrd Mat Mat Mat Traps Triggered 1 | . 1 . . Indirectly . | . . . . Trap Hack Attempts . | . . . . Triggered . | . . . . Disarmed . | . . . . Reprogrammed . | . . . . Reused . | . . . . Traps Extracted . | . . . . Installed . | . . . . Triggered 1 | . . . 1 Machines | -11 -10 -9 -8 ---------- Run | Yrd Mat Mat Mat Machines Disabled . | . . . . Max in Single Turn . | . . . . Machines Repaired . | . . . . Machines Dismantled . | . . . . Machines Sabotaged . | . . . . Overloaded Fab Kills . | . . . . Hacking | -11 -10 -9 -8 --------- Run | Yrd Mat Mat Mat Machines Accessed 3 | . 3 . . Terminals 3 | . 3 . . Fabricators . | . . . . Repair Stations . | . . . . Recycling Units . | . . . . Scanalyzers . | . . . . Garrison Access . | . . . . Total Hacks 6 | . 6 . . Successful 1 | . 1 . . Failed 5 | . 5 . . Catastrophic 1 | . 1 . . Database Lockouts . | . . . . Manual . | . . . . Terminals 6 | . 6 . . Fabricators . | . . . . Repair Stations . | . . . . Recycling Units . | . . . . Scanalyzers . | . . . . Garrison Access . | . . . . Terminal Hacks 1 | . 1 . . Branch Access Points 1 | . 1 . . Fabricator Hacks . | . . . . Repair Station Hacks . | . . . . Recycling Unit Hacks . | . . . . Scanalyzer . | . . . . Garrison Access Hacks . | . . . . Unauthorized Hacks . | . . . . Terminals . | . . . . Fabricators . | . . . . Repair Stations . | . . . . Recycling Units . | . . . . Scanalyzers . | . . . . Garrison Access . | . . . . Data Cores Recovered . | . . . . Used . | . . . . Hacking Detections 2 | . 2 . . Full Trace Events . | . . . . Feedback Events . | . . . . Feedback Blocked . | . . . . Robot Schematics Acquired . | . . . . Robots Built . | . . . . Authchips . | . . . . Time . | . . . . Total Robot Build Rating . | . . . . Part Schematics Acquired . | . . . . Parts Built . | . . . . Authchips . | . . . . Time . | . . . . Total Part Build Rating . | . . . . Parts Repaired . | . . . . Time . | . . . . Parts Recycled . | . . . . Recycled Matter . | . . . . Retrieved Matter . | . . . . Retrieved Components . | . . . . Parts Scanalyzed . | . . . . Part Schematics Acquired . | . . . . Parts Damaged . | . . . . Bothacking | -11 -10 -9 -8 ------------ Run | Yrd Mat Mat Mat Used RIF Installer . | . . . . Robots Hacked . | . . . . Non-combat . | . . . . Combat . | . . . . Robot Hacks Applied . | . . . . Relay Couplers Released . | . . . . Fabnet Peak Effective % . | . . . . Robots Rewired . | . . . . Allies Hacked . | . . . . Hacks Repelled . | . . . . Allies | -11 -10 -9 -8 -------- Run | Yrd Mat Mat Mat Total Allies . | . . . . Largest Group . | . . . . Highest-Rated Group . | . . . . Highest-Rated Ally . | . . . . Total Orders . | . . . . Ally Attacks . | . . . . Total Damage . | . . . . Kills . | . . . . Allies Corrupted . | . . . . Allies Melted . | . . . . Intel | -11 -10 -9 -8 ------- Run | Yrd Mat Mat Mat Robot Analysis Total . | . . . . Derelict Logs Recovered . | . . . . Drone Launches . | . . . . Drone Recoveries . | . . . . Exploration | -11 -10 -9 -8 ------------- Run | Yrd Mat Mat Mat Turns Passed 791 | 69 191 116 415 Spaces Moved 712 | 49 145 191 327 Core 35 | 5 . . 30 Treads . | . . . . Legs 193 | 44 115 . 34 Wheels . | . . . . Hover . | . . . . Flight 484 | . 30 191 263 Fastest Speed 31 | 50 37 31 31 Average Speed 58 | 112 102 32 45 Slowest Speed 250 | 120 120 37 250 Overloaded Moves . | . . . . Propulsion Burnouts . | . . . . Robots Hopped 3 | . . 3 . Cave-ins Triggered . | . . . . Exploration Rate (%) 22 | 5 36 21 28 Regions Visited 3 Branch Regions . Pre-discovered Areas . | . . . . Known Exits Taken . | . . . . Unknown Exits Taken 3 | 1 1 1 . Scrap Searched . | . . . . Spaces Dug . | . . . . Terrain Destroyed . | . . . . Melee . | . . . . Projectile . | . . . . AOE . | . . . . Terrain Rammed . | . . . . Walls Destroyed . | . . . . Machines Disabled . | . . . . Actions | -11 -10 -9 -8 --------- Run | Yrd Mat Mat Mat Total 973 | 59 163 227 524 Wait 130 | 1 . 1 128 Move 703 | 48 144 184 327 Hop 3 | . . 3 . Pick Up 12 | 4 1 7 . Fast Attach 22 | 6 4 3 9 Attach 3 | . . 1 2 Detach . | . . . . Swap 4 | . . 4 . Drop 18 | . 3 10 5 Fire 67 | . 11 14 42 Melee . | . . . . Ram . | . . . . Kick 11 | . . . 11 Crush . | . . . . Escape Stasis . | . . . . Rewire . | . . . . Trap . | . . . . Miscellaneous . | . . . . Route ------- -11/Scrapyard -10/Materials (discovered 2 exits: [*Mat] / Min) -9/Materials -8/Materials History --------- Turn | Location | Event 13 | -11/Scrapyard | Discovered new exit (range 15) 70 | -11/Scrapyard | Entered Materials 112 | -10/Materials | Identified exit to Mines 257 | -10/Materials | Discovered new exit (range 12) 261 | -10/Materials | Entered another Materials area 261 | -9/Materials | Evolved 2 slots: Propulsion x2 337 | -9/Materials | Discovered new exit (range 10) 377 | -9/Materials | Entered another Materials area 377 | -8/Materials | Evolved 2 slots: Utility x2 688 | -8/Materials | Core integrity fell below 50% 709 | -8/Materials | Lost 7 parts (1p3n1u2w) 733 | -8/Materials | Core integrity fell below 20% 792 | -8/Materials | Destroyed by H-55 Commando with Assault Rifle Last Messages --------------- 00750_ Acquired Deuterium Engine. 00753_ Slug penetrates Door. 00756_ Penetrated by Slug. 00759_ U-05 Engineer builds a Door. 00759_ Slug penetrates Wall. 00759_ Carbon-fiber Leg destroyed. 00762_ Slug penetrates Door. 00764_ U-05 Engineer builds a Door. 00765_ Slug penetrates Door. 00768_ U-05 Engineer builds a Door. 00773_ Drone sends a signal. 00774_ H-55 Commando retrieves Drone. 00774_ Y-45 Defender destroyed. 00774_ Slug penetrates Door. 00777_ Hacking Suite destroyed. 00778_ Acquired 19 matter. 00779_ U-05 Engineer builds a Door. 00782_ Acquired Beam Rifle. 00783_ Slug penetrates Wall. 00786_ K-01 Serf collects debris. Map ----- +----------------------------------------------------+ | ?????????????????????????????????????????????????? | | ?????????????????????????????????????????????????? | | ?????????????????????????????????????????????????? | | ?????????????????????????????????????????????????? | | ?????????????????????????????????????????????????? | | ?????????????????????????????????????????????????? | | ?????????????????????????????????????????????????? | | ?????????????????????????????????????????????????? | | ?????????????????????????????????????????????????? | | ?????????????????????????????????????????????????? | | ????????????????????? ?????????????????????????? | | ????????????????????? ?????????????????????????? | | ????????????????????# ?????????????????????????? | | ????????????????????# ?????????????????????????? | | ????????????????????# #????????????????????????? | | ????????????????????# ???????????????????????? | | ????????????????????# ???????????????????????? | | ????????????????????# ????????????????????????? | | ????????????????????# ????????????????????????? | | ????????????????????# ????????????????????????? | | ????????????????????# ????????????????????????? | | ## ???????????????# #????????????????????????? | | ???????????????# #????????????????????????? | | ????????????????# ########?????????????????? | | ????????????????# # #?????????????????? | | ????????????????????# #@ #?????????????????? | | ????????????????????# k/ """" #?????????????????? | | ????????????????????# h# """" #?????????????????? | | ????????????????????# um# """" #?????????????????? | | ????????????????????# # #?????????????????? | | ????????????######### ########?????????????????? | | ????????????# ] !## #????????????????????????? | | ????????????# ## #????????????????????????? | | ????????????# ! !!## #????????????????????????? | | ????????????#*=% ## #????????????????????????? | | ???????????## ! ## #????????????????????????? | | ???????????# [% ## ##???????????????????????? | | ?????###########+### #???????????????????????? | | ?????# ! #???????????????????????? | | ????# ##########??????????????? | | #????# % ????????? | | ?????# ########### ########????????????????? | | ?????# #????????####/######????????????????????? | | ?????# #????????# #????????????????????? | | ?????# #????????# ! #????????????????????? | | ?????# #????????# #????????????????????? | | ?????# #????????# """"""" #????????????????????? | | ?????# #????????# """"""" #????????????????????? | | ?????# #????????# """"""" #????????????????????? | | ?????# #????????# """"""" #????????????????????? | +----------------------------------------------------+ Best States ------------- Heat Dissipation 31 Energy Generation 14 Energy Capacity 275 Matter Stores 288 Matter Capacity 300 Sight Range 18 Robot Scan Range 14 Terrain Scan Density 10 Evasion (%) 71 Offensive Hacking 10 Item Schematics ----------------- None Robot Schematics ------------------ None Fabricated ------------ Nothing Alien Tech Used ----------------- None Achievements -------------- None Challenges ------------ None Game ------ Seed HypercooledGravitonMachine Manual? 0 Play Time 00:17:49 Cumulative 6.7 hours Start 2024.04.03 @ 19:14:16 End 2024.04.03 @ 19:29:35 Sessions 1 Manual Loads 0 Difficulty Rogue Special Mode None Game No. 11 Rogue 11 Adventurer 0 Explorer 0 Win Type - Total 0 Types 0/0/0/0/0/0/0/0/0 Lore% 4 Gallery% 12 Achievement% 12 Wizard Run 0 Options --------- Layout 1 ASCII 0 Keyboard 0 Movement Numpad Keybinds 0 Fullscreen 1 Font 24/Crisp Map View 50x35 Zoom Use 0% Tactical HUD 1 Map Filters NONE Filters NONE Steam 1 RUN: 1ec74490-8118-4d0f-a989-3dc9807a6245